fUSD/lending_fUSD_20260531
["ID","MTS","AMOUNT","RATE_DAILY","PERIOD"]
[423554945,1780218645000,-235.50560863,0.000185,2]
[423554898,1780218645000,-253.13,0.000169,2]
[423554902,1780218645000,-4968.77522196,0.000172,2]
[423554901,1780218645000,-1495.54,0.0001712,2]
[423554897,1780218645000,-4968.77522196,0.000168,2]
[423554899,1780218645000,-4968.77522196,0.00017,2]
[423554900,1780218645000,-736.0,0.00017108,2]
[423554903,1780218645000,-4968.77522196,0.000173,2]
[423554904,1780218645000,-2000.0,0.00017353,2]
[423554912,1780218645000,-500.0,0.00017644,2]
[423554907,1780218645000,-6067.0,0.0001744,2]
[423554918,1780218645000,-150.99,0.00017728,2]
[423554908,1780218645000,-418.0,0.0001744,2]
[423554905,1780218645000,-1226.0,0.00017413,2]
[423554909,1780218645000,-4968.77522196,0.000175,2]
[423554906,1780218645000,-3292.0,0.00017423,2]
[423554915,1780218645000,-12744.44,0.00017728,2]
[423554913,1780218645000,-793.55267586,0.000177,2]
[423554911,1780218645000,-2000.0,0.00017617,2]
[423554924,1780218645000,-168.0159497,0.00017839,2]
[423554917,1780218645000,-9999.99,0.00017728,2]
[423554928,1780218645000,-484.65,0.00017941,2]
[423554916,1780218645000,-9999.99,0.00017728,2]
[423554922,1780218645000,-167.4,0.000178,2]
[423554914,1780218645000,-4968.77522196,0.000177,2]
[423554955,1780218645000,-1954.0,0.00018986,2]
[423555000,1780218645000,-151.0,0.00019178,2]
[423554951,1780218645000,-1124.15824012,0.000187,2]
[423554982,1780218645000,-151.0,0.00019,2]
[423554983,1780218645000,-203.539396,0.00019,2]
[423554981,1780218645000,-151.0,0.00019,2]
[423554988,1780218645000,-2576.22745458,0.00019,2]
[423554987,1780218645000,-2576.227454,0.00019,2]
[423554989,1780218645000,-1364.156976,0.00019,2]
[423554985,1780218645000,-2576.227454,0.00019,2]
[423554990,1780218645000,-1364.156976,0.00019,2]
[423554986,1780218645000,-2576.227454,0.00019,2]
[423554991,1780218645000,-1364.156976,0.00019,2]
[423554994,1780218645000,-151.0,0.00019,2]
[423554984,1780218645000,-861.87944474,0.00019,2]
[423554992,1780218645000,-1364.156986,0.00019,2]
[423554995,1780218645000,-364.63104785,0.0001901,7]
[423554998,1780218645000,-160.93281423,0.00019178,2]
[423554997,1780218645000,-4609.0,0.00019166,2]
[423554999,1780218645000,-151.0,0.00019178,2]
[423554996,1780218645000,-2000.0,0.00019088,2]
[423555002,1780218645000,-151.0,0.00019178,2]
[423555001,1780218645000,-151.0,0.00019178,2]
[423555003,1780218645000,-151.0,0.00019178,2]
[423555004,1780218645000,-151.0,0.00019178,2]
[423555006,1780218645000,-151.0,0.00019178,2]
[423554957,1780218645000,-505.06,0.00018999,2]
[423554993,1780218645000,-151.0,0.00019,2]
[423554973,1780218645000,-265.0,0.00019,2]
[423555005,1780218645000,-151.0,0.00019178,2]
[423554975,1780218645000,-151.0,0.00019,2]
[423554976,1780218645000,-151.0,0.00019,2]
[423554954,1780218645000,-151.0,0.00018983,2]
[423554959,1780218645000,-666.0,0.00018999,2]
[423554950,1780218645000,-235.50560863,0.000187,2]
[423554953,1780218645000,-652.34339574,0.00018909,2]
[423554958,1780218645000,-545.06,0.00018999,2]
[423554956,1780218645000,-538.89723545,0.0001899,2]
[423554960,1780218645000,-500.0,0.00019,2]
[423554963,1780218645000,-341.0,0.00019,2]
[423554961,1780218645000,-5239.34559602,0.00019,2]
[423554962,1780218645000,-101004.92523113,0.00019,2]
[423554964,1780218645000,-154.0,0.00019,2]
[423554952,1780218645000,-1495.54,0.00018832,2]
[423554967,1780218645000,-243.0,0.00019,2]
[423554965,1780218645000,-512.0,0.00019,2]
[423554974,1780218645000,-2667.0,0.00019,2]
[423554980,1780218645000,-218.498769,0.00019,2]
[423554978,1780218645000,-218.498777,0.00019,2]
[423554977,1780218645000,-218.498777,0.00019,2]
[423554972,1780218645000,-813.0,0.00019,2]
[423554979,1780218645000,-218.498777,0.00019,2]
[423554970,1780218645000,-538.0,0.00019,2]
[423554969,1780218645000,-1260.0,0.00019,2]
[423554966,1780218645000,-437.0,0.00019,2]
[423554968,1780218645000,-223.0,0.00019,2]
[423554971,1780218645000,-413.0,0.00019,2]
[423555035,1780218646000,-1131.067051,0.00019178,2]
[423555034,1780218646000,-1131.067051,0.00019178,2]
[423555040,1780218646000,-1131.067051,0.00019178,2]
[423555038,1780218646000,-1131.067051,0.00019178,2]
[423555050,1780218646000,-1131.067051,0.00019178,2]
[423555046,1780218646000,-1131.067051,0.00019178,2]
[423555042,1780218646000,-1131.067051,0.00019178,2]
[423555041,1780218646000,-1131.067051,0.00019178,2]
[423555039,1780218646000,-1131.067051,0.00019178,2]
[423555047,1780218646000,-1131.067051,0.00019178,2]
[423555043,1780218646000,-1131.067051,0.00019178,2]
[423555053,1780218646000,-179.62149,0.00019204,2]
[423555048,1780218646000,-1131.067051,0.00019178,2]
[423555049,1780218646000,-1131.067051,0.00019178,2]
[423555045,1780218646000,-1131.067051,0.00019178,2]
[423555051,1780218646000,-1131.067056,0.00019178,2]
[423555054,1780218646000,-179.62149,0.00019204,2]
[423555052,1780218646000,-151.0,0.00019204,2]
[423555055,1780218646000,-179.62149,0.00019204,2]
[423555058,1780218646000,-150.0,0.00019204,2]
[423555056,1780218646000,-179.62149,0.00019204,2]
[423555060,1780218646000,-207.911,0.00019204,2]
[423555030,1780218646000,-221.043836,0.00019178,2]
[423555057,1780218646000,-220.0,0.00019204,2]
[423555044,1780218646000,-1131.067051,0.00019178,2]
[423555036,1780218646000,-1131.067051,0.00019178,2]
[423555020,1780218646000,-221.043836,0.00019178,2]
[423555037,1780218646000,-1131.067051,0.00019178,2]
[423555061,1780218646000,-163.0,0.00019204,2]
[423555014,1780218646000,-221.043836,0.00019178,2]
[423555007,1780218646000,-151.0,0.00019178,2]
[423555009,1780218646000,-151.0,0.00019178,2]
[423555008,1780218646000,-151.0,0.00019178,2]
[423555010,1780218646000,-151.0,0.00019178,2]
[423555011,1780218646000,-175.025737,0.00019178,2]
[423555013,1780218646000,-221.043836,0.00019178,2]
[423555012,1780218646000,-221.043836,0.00019178,2]
[423555016,1780218646000,-221.043836,0.00019178,2]
[423555026,1780218646000,-221.043836,0.00019178,2]
[423555015,1780218646000,-221.043836,0.00019178,2]
[423555017,1780218646000,-221.043836,0.00019178,2]
[423555018,1780218646000,-221.043836,0.00019178,2]
[423555021,1780218646000,-221.043836,0.00019178,2]
[423555024,1780218646000,-221.043836,0.00019178,2]
[423555019,1780218646000,-221.043836,0.00019178,2]
[423555025,1780218646000,-221.043836,0.00019178,2]
[423555023,1780218646000,-221.043836,0.00019178,2]
[423555022,1780218646000,-221.043836,0.00019178,2]
[423555027,1780218646000,-221.043836,0.00019178,2]
[423555028,1780218646000,-221.043836,0.00019178,2]
[423555029,1780218646000,-221.043836,0.00019178,2]
[423555031,1780218646000,-221.043843,0.00019178,2]
[423555033,1780218646000,-1131.067051,0.00019178,2]
[423555032,1780218646000,-1131.067051,0.00019178,2]
[423555059,1780218646000,-200.0,0.00019204,2]
[423555119,1780218646000,-1226.0,0.00020413,2]
[423555062,1780218646000,-246.795,0.00019204,2]
[423555093,1780218646000,-512.0,0.0002,2]
[423555092,1780218646000,-154.0,0.0002,2]
[423555094,1780218646000,-437.0,0.0002,2]
[423555098,1780218646000,-151.37,0.0002,2]
[423555100,1780218646000,-538.0,0.0002,2]
[423555107,1780218646000,-15822.37,0.0002,2]
[423555105,1780218646000,-179.1,0.0002,30]
[423555101,1780218646000,-413.0,0.0002,2]
[423555099,1780218646000,-1260.0,0.0002,2]
[423555106,1780218646000,-1935.0,0.0002,2]
[423555102,1780218646000,-813.0,0.0002,2]
[423555104,1780218646000,-2667.0,0.0002,2]
[423555103,1780218646000,-265.0,0.0002,2]
[423555108,1780218646000,-1066.0,0.0002,2]
[423555112,1780218646000,-622.69350044,0.00020078,10]
[423555111,1780218646000,-622.69350044,0.00020078,10]
[423555109,1780218646000,-811.0,0.0002,2]
[423555110,1780218646000,-2129.0,0.00020025,2]
[423555114,1780218646000,-852.0,0.00020172,2]
[423555116,1780218646000,-191.34,0.000203,2]
[423555115,1780218646000,-180.04204681,0.00020227,2]
[423555113,1780218646000,-174.09,0.00020083,2]
[423555118,1780218646000,-2065.66,0.000204,2]
[423555120,1780218646000,-2015.51337845,0.00020421,2]
[423555063,1780218646000,-250.0,0.00019204,2]
[423555097,1780218646000,-223.0,0.0002,2]
[423555095,1780218646000,-243.0,0.0002,2]
[423555117,1780218646000,-1493.1,0.00020381,2]
[423555091,1780218646000,-341.0,0.0002,2]
[423555096,1780218646000,-1176.0,0.0002,2]
[423555070,1780218646000,-150.998,0.00019204,2]
[423555068,1780218646000,-150.874,0.00019204,2]
[423555069,1780218646000,-150.0,0.00019204,2]
[423555065,1780218646000,-295.331,0.00019204,2]
[423555071,1780218646000,-187.0,0.00019204,2]
[423555067,1780218646000,-167.326,0.00019204,2]
[423555064,1780218646000,-166.754,0.00019204,2]
[423555072,1780218646000,-3550.0,0.00019204,2]
[423555073,1780218646000,-928.0,0.00019204,2]
[423555076,1780218646000,-525.0,0.00019204,2]
[423555083,1780218646000,-162.44,0.00019975,2]
[423555066,1780218646000,-250.0,0.00019204,2]
[423555080,1780218646000,-500.0,0.00019493,2]
[423555079,1780218646000,-719.68399735,0.00019364,2]
[423555089,1780218646000,-400.0,0.0002,2]
[423555088,1780218646000,-299.99999901,0.0002,2]
[423555087,1780218646000,-300.59886378,0.0002,2]
[423555086,1780218646000,-722.0,0.0002,2]
[423555090,1780218646000,-233.0,0.0002,2]
[423555078,1780218646000,-1273.0,0.00019204,2]
[423555082,1780218646000,-1124.0,0.00019904,2]
[423555085,1780218646000,-500.0,0.00019999,13]
[423555074,1780218646000,-1356.0,0.00019204,2]
[423555084,1780218646000,-500.0,0.00019986,2]
[423555081,1780218646000,-168.0159497,0.00019677,2]
[423555148,1780218647000,-238.60871557,0.00020676,2]
[423555154,1780218647000,-266.08633524,0.00020676,2]
[423555149,1780218647000,-2080.17592889,0.00020676,2]
[423555150,1780218647000,-857.73993207,0.00020676,2]
[423555155,1780218647000,-151.0,0.00020676,2]
[423555152,1780218647000,-247.43723804,0.00020676,2]
[423555156,1780218647000,-275.93152964,0.00020676,2]
[423555151,1780218647000,-151.0,0.00020676,2]
[423555153,1780218647000,-256.59241585,0.00020676,2]
[423555159,1780218647000,-151.0,0.00020676,2]
[423555157,1780218647000,-151.0,0.00020676,2]
[423555163,1780218647000,-316.63954798,0.00020676,2]
[423555160,1780218647000,-296.7282131,0.00020676,2]
[423555162,1780218647000,-307.70715698,0.00020676,2]
[423555158,1780218647000,-286.14099624,0.00020676,2]
[423555161,1780218647000,-151.0,0.00020676,2]
[423555165,1780218647000,-151.0,0.00020676,2]
[423555167,1780218647000,-151.0,0.00020676,2]
[423555164,1780218647000,-151.0,0.00020676,2]
[423555169,1780218647000,-151.0,0.00020676,2]
[423555147,1780218647000,-151.0,0.00020676,2]
[423555166,1780218647000,-151.0,0.00020676,2]
[423555146,1780218647000,-230.09519341,0.00020676,2]
[423555134,1780218647000,-151.0,0.00020676,2]
[423555144,1780218647000,-221.88543241,0.00020676,2]
[423555168,1780218647000,-151.0,0.00020676,2]
[423555123,1780218647000,-501.09197696,0.00020449,2]
[423555121,1780218647000,-760.243,0.0002044,2]
[423555125,1780218647000,-500.0,0.0002048,2]
[423555122,1780218647000,-418.0,0.0002044,2]
[423555126,1780218647000,-286.0,0.000205,30]
[423555124,1780218647000,-14509.54763289,0.00020477,2]
[423555127,1780218647000,-1495.54,0.00020544,2]
[423555128,1780218647000,-150.0,0.0002058,2]
[423555129,1780218647000,-150.0,0.0002058,2]
[423555130,1780218647000,-150.0,0.0002058,2]
[423555132,1780218647000,-169.93421537,0.0002058,2]
[423555131,1780218647000,-150.0,0.0002058,2]
[423555133,1780218647000,-693.39197629,0.00020676,2]
[423555137,1780218647000,-174.61919141,0.00020676,2]
[423555135,1780218647000,-151.0,0.00020676,2]
[423555136,1780218647000,-151.0,0.00020676,2]
[423555138,1780218647000,-151.0,0.00020676,2]
[423555139,1780218647000,-151.0,0.00020676,2]
[423555140,1780218647000,-578.20924308,0.00020676,2]
[423555141,1780218647000,-151.0,0.00020676,2]
[423555145,1780218647000,-151.0,0.00020676,2]
[423555142,1780218647000,-1428.38747117,0.00020676,2]
[423555143,1780218647000,-207.76482817,0.00020676,2]
[423555170,1780218647000,-151.0,0.00020676,2]
[423555171,1780218647000,-719.04747942,0.00020731,2]
[423555175,1780218647000,-474.28,0.00020843,2]
[423555202,1780218647000,-299.26,0.00021,30]
[423555201,1780218647000,-388.15,0.00021,30]
[423555203,1780218647000,-862.28603014,0.00021006,2]
[423555208,1780218647000,-428.81,0.00021205,2]
[423555205,1780218647000,-6453.0,0.00021082,2]
[423555207,1780218647000,-961.58486558,0.00021171,2]
[423555204,1780218647000,-894.19061325,0.00021061,2]
[423555206,1780218647000,-927.27566594,0.00021116,2]
[423555210,1780218647000,-1481.2378076,0.00021224,2]
[423555212,1780218647000,-997.16350561,0.00021226,2]
[423555197,1780218647000,-265.0,0.00021,2]
[423555211,1780218647000,-2157.14243826,0.00021224,2]
[423555214,1780218647000,-641.71,0.00021273,2]
[423555220,1780218647000,-151.0,0.00021651,2]
[423555215,1780218647000,-8063.84,0.00021273,2]
[423555219,1780218647000,-535.0,0.00021519,7]
[423555218,1780218647000,-168.01594972,0.00021516,2]
[423555216,1780218647000,-474.28,0.00021364,2]
[423555217,1780218647000,-500.0,0.00021466,2]
[423555221,1780218647000,-3620.0,0.00021672,2]
[423555222,1780218647000,-15822.37,0.00021756,2]
[423555177,1780218647000,-831.51979762,0.00020951,2]
[423555213,1780218647000,-1755.05,0.00021273,2]
[423555194,1780218647000,-538.0,0.00021,2]
[423555209,1780218647000,-181.08010149,0.00021224,2]
[423555190,1780218647000,-6111.0,0.00021,2]
[423555196,1780218647000,-813.0,0.00021,2]
[423555173,1780218647000,-2000.0,0.00020824,2]
[423555178,1780218647000,-1124.0,0.00020952,2]
[423555176,1780218647000,-801.85129954,0.00020896,2]
[423555174,1780218647000,-773.24136889,0.00020841,2]
[423555180,1780218647000,-15000.0,0.00021,2]
[423555183,1780218647000,-341.0,0.00021,2]
[423555184,1780218647000,-154.0,0.00021,2]
[423555179,1780218647000,-500.0,0.00020973,2]
[423555185,1780218647000,-512.0,0.00021,2]
[423555181,1780218647000,-6111.0,0.00021,2]
[423555182,1780218647000,-233.0,0.00021,2]
[423555172,1780218647000,-745.65223615,0.00020786,2]
[423555200,1780218647000,-1172.9,0.00021,30]
[423555186,1780218647000,-437.0,0.00021,2]
[423555188,1780218647000,-6111.0,0.00021,2]
[423555189,1780218647000,-15000.0,0.00021,2]
[423555191,1780218647000,-243.0,0.00021,2]
[423555192,1780218647000,-223.0,0.00021,2]
[423555193,1780218647000,-1260.0,0.00021,2]
[423555199,1780218647000,-1873.17,0.00021,30]
[423555195,1780218647000,-413.0,0.00021,2]
[423555198,1780218647000,-2667.0,0.00021,2]
[423555187,1780218647000,-15000.0,0.00021,2]
[423555254,1780218648000,-166.0,0.00021918,2]
[423555256,1780218648000,-166.0,0.00021918,2]
[423555255,1780218648000,-166.0,0.00021918,2]
[423555247,1780218648000,-272.65,0.00021918,2]
[423555249,1780218648000,-272.65,0.00021918,2]
[423555252,1780218648000,-272.65,0.00021918,2]
[423555248,1780218648000,-272.65,0.00021918,2]
[423555251,1780218648000,-272.65,0.00021918,2]
[423555257,1780218648000,-166.0,0.00021918,2]
[423555250,1780218648000,-272.65,0.00021918,2]
[423555258,1780218648000,-166.0,0.00021918,2]
[423555266,1780218648000,-505.06,0.00021999,2]
[423555259,1780218648000,-166.0,0.00021918,2]
[423555261,1780218648000,-166.0,0.00021918,2]
[423555260,1780218648000,-166.0,0.00021918,2]
[423555264,1780218648000,-200.0,0.00021937,2]
[423555263,1780218648000,-319.24,0.00021918,2]
[423555265,1780218648000,-500.0,0.00021959,2]
[423555267,1780218648000,-545.06,0.00021999,2]
[423555268,1780218648000,-10000.0,0.00022,10]
[423555270,1780218648000,-3968.0,0.00022,10]
[423555271,1780218648000,-500.0,0.00022,10]
[423555262,1780218648000,-172.0,0.00021918,2]
[423555253,1780218648000,-5000.0,0.00021918,2]
[423555225,1780218648000,-2236.95670847,0.00021772,2]
[423555242,1780218648000,-272.65,0.00021918,2]
[423555224,1780218648000,-1536.04360648,0.00021772,2]
[423555226,1780218648000,-474.29159382,0.00021885,2]
[423555223,1780218648000,-187.78006524,0.00021772,2]
[423555233,1780218648000,-272.65,0.00021918,2]
[423555229,1780218648000,-151.0,0.00021918,2]
[423555227,1780218648000,-151.0,0.00021918,2]
[423555228,1780218648000,-151.0,0.00021918,2]
[423555275,1780218648000,-154.94064324,0.00022,2]
[423555230,1780218648000,-151.0,0.00021918,2]
[423555232,1780218648000,-273.639445,0.00021918,2]
[423555246,1780218648000,-272.65,0.00021918,2]
[423555231,1780218648000,-151.0,0.00021918,2]
[423555245,1780218648000,-272.65,0.00021918,2]
[423555234,1780218648000,-272.65,0.00021918,2]
[423555236,1780218648000,-272.65,0.00021918,2]
[423555238,1780218648000,-272.65,0.00021918,2]
[423555237,1780218648000,-272.65,0.00021918,2]
[423555239,1780218648000,-272.65,0.00021918,2]
[423555244,1780218648000,-272.65,0.00021918,2]
[423555240,1780218648000,-272.65,0.00021918,2]
[423555241,1780218648000,-272.65,0.00021918,2]
[423555243,1780218648000,-272.65,0.00021918,2]
[423555235,1780218648000,-272.65,0.00021918,2]
[423555276,1780218648000,-512.0,0.00022,2]
[423555316,1780218648000,-150.0,0.00022204,2]
[423555277,1780218648000,-437.0,0.00022,2]
[423555297,1780218648000,-1511.49,0.00022183,2]
[423555314,1780218648000,-150.0,0.00022204,2]
[423555304,1780218648000,-179.62148,0.00022204,2]
[423555308,1780218648000,-150.0,0.00022204,2]
[423555306,1780218648000,-150.0,0.00022204,2]
[423555303,1780218648000,-179.62149,0.00022204,2]
[423555310,1780218648000,-150.0,0.00022204,2]
[423555305,1780218648000,-150.0,0.00022204,2]
[423555307,1780218648000,-150.0,0.00022204,2]
[423555309,1780218648000,-150.0,0.00022204,2]
[423555298,1780218648000,-1511.48,0.00022183,2]
[423555313,1780218648000,-150.0,0.00022204,2]
[423555315,1780218648000,-150.0,0.00022204,2]
[423555317,1780218648000,-150.0,0.00022204,2]
[423555321,1780218648000,-525.0,0.00022204,2]
[423555323,1780218648000,-719.68399735,0.00022248,2]
[423555320,1780218648000,-1356.0,0.00022204,2]
[423555318,1780218648000,-3550.0,0.00022204,2]
[423555319,1780218648000,-928.0,0.00022204,2]
[423555322,1780218648000,-1273.0,0.00022204,2]
[423555324,1780218648000,-194.72792766,0.0002232,2]
[423555273,1780218648000,-233.0,0.00022,2]
[423555311,1780218648000,-150.0,0.00022204,2]
[423555299,1780218648000,-1511.48,0.00022183,2]
[423555312,1780218648000,-150.0,0.00022204,2]
[423555294,1780218648000,-1511.48,0.00022181,2]
[423555300,1780218648000,-187.931898,0.00022201,2]
[423555269,1780218648000,-3968.38,0.00022,10]
[423555274,1780218648000,-341.0,0.00022,2]
[423555272,1780218648000,-450.0,0.00022,2]
[423555279,1780218648000,-223.0,0.00022,2]
[423555285,1780218648000,-2667.0,0.00022,2]
[423555287,1780218648000,-511.49,0.00022,30]
[423555278,1780218648000,-243.0,0.00022,2]
[423555289,1780218648000,-1124.0,0.00022055,2]
[423555280,1780218648000,-1260.0,0.00022,2]
[423555281,1780218648000,-538.0,0.00022,2]
[423555283,1780218648000,-813.0,0.00022,2]
[423555282,1780218648000,-413.0,0.00022,2]
[423555288,1780218648000,-2337.0,0.00022,2]
[423555293,1780218648000,-1511.48,0.00022179,2]
[423555296,1780218648000,-1511.48,0.00022181,2]
[423555292,1780218648000,-1511.48,0.00022179,2]
[423555291,1780218648000,-200.0,0.000221,2]
[423555290,1780218648000,-2065.66,0.000221,7]
[423555295,1780218648000,-1511.48,0.00022181,2]
[423555302,1780218648000,-179.62149,0.00022204,2]
[423555286,1780218648000,-2766.49,0.00022,30]
[423555284,1780218648000,-265.0,0.00022,2]
[423555301,1780218648000,-179.62149,0.00022204,2]
[423555362,1780218649000,-1124.0,0.00023216,2]
[423555359,1780218649000,-668.18,0.00023078,2]
[423555354,1780218649000,-265.0,0.00023,2]
[423555357,1780218649000,-616.54,0.00023,30]
[423555358,1780218649000,-186.89,0.00023,30]
[423555356,1780218649000,-3346.84,0.00023,30]
[423555355,1780218649000,-2667.0,0.00023,2]
[423555360,1780218649000,-2550.0,0.00023121,2]
[423555361,1780218649000,-9035.0,0.00023191,2]
[423555366,1780218649000,-2494.55939288,0.00023416,2]
[423555363,1780218649000,-1226.0,0.00023413,2]
[423555365,1780218649000,-1712.93078311,0.00023416,2]
[423555376,1780218649000,-500.0,0.00023933,2]
[423555364,1780218649000,-599.60298507,0.00023415,2]
[423555368,1780218649000,-418.0,0.0002344,2]
[423555367,1780218649000,-500.0,0.00023439,2]
[423555369,1780218649000,-1889.0,0.00023441,2]
[423555372,1780218649000,-151.0,0.00023646,2]
[423555373,1780218649000,-151.0,0.00023646,2]
[423555382,1780218649000,-520.7277825,0.00024,2]
[423555371,1780218649000,-15822.37,0.00023511,2]
[423555381,1780218649000,-345.96941953,0.00024,2]
[423555374,1780218649000,-151.0,0.00023674,2]
[423555378,1780218649000,-2586.85809042,0.00023964,2]
[423555350,1780218649000,-1260.0,0.00023,2]
[423555370,1780218649000,-200.0,0.00023509,2]
[423555351,1780218649000,-538.0,0.00023,2]
[423555325,1780218649000,-1592.87721992,0.0002232,2]
[423555352,1780218649000,-413.0,0.00023,2]
[423555329,1780218649000,-151.0,0.00022446,2]
[423555326,1780218649000,-2319.72410669,0.0002232,2]
[423555377,1780218649000,-1776.30922209,0.00023964,2]
[423555327,1780218649000,-1493.1,0.00022353,2]
[423555331,1780218649000,-151.0,0.00022446,2]
[423555330,1780218649000,-151.0,0.00022446,2]
[423555328,1780218649000,-151.0,0.00022446,2]
[423555335,1780218649000,-285.1,0.00022466,2]
[423555334,1780218649000,-500.0,0.00022453,2]
[423555333,1780218649000,-17491.85917283,0.00022446,2]
[423555332,1780218649000,-151.0,0.00022446,2]
[423555337,1780218649000,-14509.54763289,0.00022784,2]
[423555339,1780218649000,-1651.81367706,0.00022868,2]
[423555338,1780218649000,-226.08776067,0.00022868,2]
[423555336,1780218649000,-200.0,0.00022723,2]
[423555347,1780218649000,-437.0,0.00023,2]
[423555340,1780218649000,-2405.55389863,0.00022868,2]
[423555345,1780218649000,-341.0,0.00023,2]
[423555342,1780218649000,-2014.4318943,0.00023,2]
[423555341,1780218649000,-500.0,0.00022946,2]
[423555344,1780218649000,-233.0,0.00023,2]
[423555346,1780218649000,-512.0,0.00023,2]
[423555343,1780218649000,-240.0,0.00023,20]
[423555349,1780218649000,-223.0,0.00023,2]
[423555353,1780218649000,-813.0,0.00023,2]
[423555348,1780218649000,-243.0,0.00023,2]
[423555379,1780218649000,-500.0,0.00024,2]
[423555375,1780218649000,-2065.66,0.000239,7]
[423555385,1780218649000,-237.0,0.00024,2]
[423555412,1780218649000,-151.0,0.00024468,2]
[423555415,1780218649000,-151.0,0.00024475,2]
[423555413,1780218649000,-151.0,0.00024468,2]
[423555417,1780218649000,-151.0,0.00024496,2]
[423555419,1780218649000,-151.0,0.00024496,2]
[423555424,1780218649000,-151.0,0.00024496,2]
[423555422,1780218649000,-151.0,0.00024496,2]
[423555428,1780218649000,-151.0,0.00024496,2]
[423555420,1780218649000,-151.0,0.00024496,2]
[423555423,1780218649000,-151.0,0.00024496,2]
[423555426,1780218649000,-151.0,0.00024496,2]
[423555427,1780218649000,-181.12,0.00024496,2]
[423555416,1780218649000,-159.92,0.00024496,2]
[423555421,1780218649000,-151.0,0.00024496,2]
[423555430,1780218649000,-153.99,0.00024496,2]
[423555429,1780218649000,-151.0,0.00024496,2]
[423555432,1780218649000,-151.0,0.00024496,2]
[423555433,1780218649000,-1842.0326633,0.00024512,2]
[423555434,1780218649000,-2682.57183977,0.00024512,2]
[423555437,1780218649000,-155.491187,0.00024658,2]
[423555435,1780218649000,-319.24,0.00024658,15]
[423555436,1780218649000,-643.16,0.00024658,2]
[423555439,1780218649000,-151.613884,0.00024658,2]
[423555431,1780218649000,-151.0,0.00024496,2]
[423555380,1780218649000,-249.32530215,0.00024,2]
[423555438,1780218649000,-151.613884,0.00024658,2]
[423555425,1780218649000,-151.0,0.00024496,2]
[423555411,1780218649000,-154.9,0.00024468,2]
[423555418,1780218649000,-151.0,0.00024496,2]
[423555407,1780218649000,-151.0,0.00024468,2]
[423555387,1780218649000,-539.96743013,0.00024,2]
[423555414,1780218649000,-210.44,0.00024475,2]
[423555392,1780218649000,-200.0,0.000241,2]
[423555383,1780218649000,-439.2771525,0.00024,2]
[423555393,1780218649000,-2904.16,0.00024174,2]
[423555384,1780218649000,-260.62575589,0.00024,2]
[423555394,1780218649000,-200.0,0.00024296,2]
[423555386,1780218649000,-1260.0,0.00024,2]
[423555388,1780218649000,-418.0,0.00024,2]
[423555391,1780218649000,-2672.20198804,0.00024,2]
[423555389,1780218649000,-832.25809581,0.00024,2]
[423555395,1780218649000,-1493.1,0.00024324,2]
[423555396,1780218649000,-1124.0,0.00024376,2]
[423555390,1780218649000,-265.57790151,0.00024,2]